{"text_format":"3","workbook":"xlsx","n_sheets":3,"sheets":["Início","Acompanhamento e orçamento d...","Dados"],"not_rendered":{"charts":1,"external_links":1,"defined_names":1},"read":"whole","date_system":"1900"}

{"sheet":"Início","index":0,"n_rows":7,"n_cols":2,"rows_kept":7}
[null,"Sobre o modelo"]
[null,"Use este modelo para registrar suas compras de presente e rastreá-las em relação ao orçamento."]
[null,"Insira na tabela os nomes de familiares e amigos, itens de presente, valores orçados e gastos e anotações e selecione a ocasião e o mês do evento."]
[null,"O gráfico de visão geral mensal é atualizado automaticamente."]
[null,"Observação: "]
[null,"Instruções adicionais são fornecidas na coluna A da planilha de ACOMPANHAMENTO E ORÇAMENTO DE PRESENTE. Este texto está oculto de propósito. Para removê-lo, selecione a coluna A e selecione Excluir. Para reexibir o texto, selecione a coluna A e altere a cor da fonte."]
[null,"Para saber mais sobre tabela, pressione Shift e F10 dentro de uma tabela, selecione a opção TABELA e, em seguida, selecione TEXTO ALTERNATIVO."]

{"sheet":"Acompanhamento e orçamento d...","index":1,"n_rows":10,"n_cols":13,"rows_kept":10,"merged":[[0,1,0,4],[0,5,0,12],[1,1,1,2],[2,1,2,12],[3,1,3,3]]}
["Crie um orçamento de presente pessoal e rastreador nesta planilha. O título da planilha está na célula à direita e a dica na célula F1. Instruções úteis sobre como usar essa planilha estão nas células desta coluna.","Acompanhamento e orçamento de presentes",{"$nulls":3},"Preencha o máximo possível no início de cada ano novo. Insira os nomes da família e dos amigos, selecione a ocasião do presente, selecione o mês do evento e digite quanto você deseja gastar. Cada pessoa pode aparecer várias vezes dentro da tabela para cada ocasião diferente (aniversário, feriado, chá de bebê, etc.)."]
["O rótulo da visão geral mensal está na célula à direita e dica na célula D2.","Visão geral mensal",null,"Use o grafo para examinar os próximos meses para planejar com antecedência. Registre suas compras para rastreá-las em relação ao seu orçamento."]
["O gráfico de colunas para valores orçados com sobreposição de gráfico de linhas para o valor gasto está na célula à direita.","O gráfico de colunas para valores orçados com sobreposição de gráfico de linhas para o valor gasto está nesta célula."]
["O rótulo orçamento de presente e rastreador está na célula à direita.","Acompanhamento e orçamento de presentes"]
["Insira detalhes na tabela Rastreador de orçamento, começando na célula à direita.","Quem","Ocasião","Mês","Valor\norçado","Valor\ngasto","Presente","Link para presente","Na loja/\nOnline","Comprado?","Embrulhado?","Entregue?","Anotações"]
[null,"Nome 1","Aniversários","Junho",{"v":50,"d":"R$ 50"},{"v":30,"d":"R$ 30"},"Sapatos","Vendedor","Online","Sim","Não","Não","16/06, ingressos do filme"]
[null,"Nome 2","Datas comemorativas","Abril",{"v":20,"d":"R$ 20"},{"v":20,"d":"R$ 20"},"Um gato","Vendedor","Na loja","Não","Não","Não","Ele mencionou que gosta de cachorros"]
[null,"Nome 3","Feriados","Julho",{"v":50,"d":"R$ 50"},{"v":70,"d":"R$ 70"},"Fones de ouvido","Vendedor","Online","Não","Não","Não","Coisas de dormitório"]
[null,"Nome 4","Aniversários","Janeiro",{"v":20,"d":"R$ 20"},{"v":30,"d":"R$ 30"},"Jogo","Vendedor","Na loja","Sim","Sim","Sim"]
[null,"Nome 5","Casamentos","Junho",{"v":100,"d":"R$ 100"},{"v":150,"d":"R$ 150"},"Vaso de vidro","Vendedor","Na loja","Sim","Sim","Não"]

{"sheet":"Dados","index":2,"n_rows":13,"n_cols":8,"rows_kept":13,"hidden":true}
["Ocasiões",null,"Data","Data","Valor orçamentado\nAniversários","Valor orçamentado\nFeriados","Valor orçamentado\nOutros","Valor gasto"]
["Aniversários",null,"Janeiro","Jan",{"$f":"SUMIFS(BudgetTracker[Valor\norçado],BudgetTracker[Mês],\"Janeiro\",BudgetTracker[Ocasião],\"Aniversários\")","v":{"v":20,"d":"R$ 20"}},{"$f":"SUMIFS(BudgetTracker[Valor\norçado],BudgetTracker[Mês],\"Janeiro\",BudgetTracker[Ocasião],\"Feriados\")","v":{"v":0,"d":"R$ 0"}},{"$f":"SUMIFS(BudgetTracker[Valor\norçado],BudgetTracker[Mês],\"Janeiro\",BudgetTracker[Ocasião],\"<>Feriados\",BudgetTracker[Ocasião],\"<>Aniversários\")","v":{"v":0,"d":"R$ 0"}},{"$f":"SUMIFS(BudgetTracker[Valor\ngasto],BudgetTracker[Mês],\"Janeiro\")","v":{"v":30,"d":"R$ 30"}}]
["Feriados",null,"Fevereiro","Fev",{"$f":"SUMIFS(BudgetTracker[Valor\norçado],BudgetTracker[Mês],\"Fevereiro\",BudgetTracker[Ocasião],\"Aniversários\")","v":{"v":0,"d":"R$ 0"}},{"$f":"SUMIFS(BudgetTracker[Valor\norçado],BudgetTracker[Mês],\"Fevereiro\",BudgetTracker[Ocasião],\"Feriados\")","v":{"v":0,"d":"R$ 0"}},{"$f":"SUMIFS(BudgetTracker[Valor\norçado],BudgetTracker[Mês],\"Fevereiro\",BudgetTracker[Ocasião],\"<>Feriados\",BudgetTracker[Ocasião],\"<>Aniversários\")","v":{"v":0,"d":"R$ 0"}},{"$f":"SUMIFS(BudgetTracker[Valor\ngasto],BudgetTracker[Mês],\"Fevereiro\")","v":{"v":0,"d":"R$ 0"}}]
["Datas comemorativas",null,"Março","Mar",{"$f":"SUMIFS(BudgetTracker[Valor\norçado],BudgetTracker[Mês],\"Março\",BudgetTracker[Ocasião],\"Aniversários\")","v":{"v":0,"d":"R$ 0"}},{"$f":"SUMIFS(BudgetTracker[Valor\norçado],BudgetTracker[Mês],\"Março\",BudgetTracker[Ocasião],\"Feriados\")","v":{"v":0,"d":"R$ 0"}},{"$f":"SUMIFS(BudgetTracker[Valor\norçado],BudgetTracker[Mês],\"Março\",BudgetTracker[Ocasião],\"<>Feriados\",BudgetTracker[Ocasião],\"<>Aniversários\")","v":{"v":0,"d":"R$ 0"}},{"$f":"SUMIFS(BudgetTracker[Valor\ngasto],BudgetTracker[Mês],\"Março\")","v":{"v":0,"d":"R$ 0"}}]
["Casamentos",null,"Abril","Abr",{"$f":"SUMIFS(BudgetTracker[Valor\norçado],BudgetTracker[Mês],\"Abril\",BudgetTracker[Ocasião],\"Aniversários\")","v":{"v":0,"d":"R$ 0"}},{"$f":"SUMIFS(BudgetTracker[Valor\norçado],BudgetTracker[Mês],\"Abril\",BudgetTracker[Ocasião],\"Feriados\")","v":{"v":0,"d":"R$ 0"}},{"$f":"SUMIFS(BudgetTracker[Valor\norçado],BudgetTracker[Mês],\"Abril\",BudgetTracker[Ocasião],\"<>Feriados\",BudgetTracker[Ocasião],\"<>Aniversários\")","v":{"v":20,"d":"R$ 20"}},{"$f":"SUMIFS(BudgetTracker[Valor\ngasto],BudgetTracker[Mês],\"Abril\")","v":{"v":20,"d":"R$ 20"}}]
["Chás de noiva",null,"Maio","Maio",{"$f":"SUMIFS(BudgetTracker[Valor\norçado],BudgetTracker[Mês],\"Maio\",BudgetTracker[Ocasião],\"Aniversários\")","v":{"v":0,"d":"R$ 0"}},{"$f":"SUMIFS(BudgetTracker[Valor\norçado],BudgetTracker[Mês],\"Maio\",BudgetTracker[Ocasião],\"Feriados\")","v":{"v":0,"d":"R$ 0"}},{"$f":"SUMIFS(BudgetTracker[Valor\norçado],BudgetTracker[Mês],\"Maio\",BudgetTracker[Ocasião],\"<>Feriados\",BudgetTracker[Ocasião],\"<>Aniversários\")","v":{"v":0,"d":"R$ 0"}},{"$f":"SUMIFS(BudgetTracker[Valor\ngasto],BudgetTracker[Mês],\"Maio\")","v":{"v":0,"d":"R$ 0"}}]
["Chás de bebê",null,"Junho","Jun",{"$f":"SUMIFS(BudgetTracker[Valor\norçado],BudgetTracker[Mês],\"Junho\",BudgetTracker[Ocasião],\"Aniversários\")","v":{"v":50,"d":"R$ 50"}},{"$f":"SUMIFS(BudgetTracker[Valor\norçado],BudgetTracker[Mês],\"Junho\",BudgetTracker[Ocasião],\"Feriados\")","v":{"v":0,"d":"R$ 0"}},{"$f":"SUMIFS(BudgetTracker[Valor\norçado],BudgetTracker[Mês],\"Junho\",BudgetTracker[Ocasião],\"<>Feriados\",BudgetTracker[Ocasião],\"<>Aniversários\")","v":{"v":100,"d":"R$ 100"}},{"$f":"SUMIFS(BudgetTracker[Valor\ngasto],BudgetTracker[Mês],\"Junho\")","v":{"v":180,"d":"R$ 180"}}]
["Graduações",null,"Julho","Jul",{"$f":"SUMIFS(BudgetTracker[Valor\norçado],BudgetTracker[Mês],\"Julho\",BudgetTracker[Ocasião],\"Aniversários\")","v":{"v":0,"d":"R$ 0"}},{"$f":"SUMIFS(BudgetTracker[Valor\norçado],BudgetTracker[Mês],\"Julho\",BudgetTracker[Ocasião],\"Feriados\")","v":{"v":50,"d":"R$ 50"}},{"$f":"SUMIFS(BudgetTracker[Valor\norçado],BudgetTracker[Mês],\"Julho\",BudgetTracker[Ocasião],\"<>Feriados\",BudgetTracker[Ocasião],\"<>Aniversários\")","v":{"v":0,"d":"R$ 0"}},{"$f":"SUMIFS(BudgetTracker[Valor\ngasto],BudgetTracker[Mês],\"Julho\")","v":{"v":70,"d":"R$ 70"}}]
["Outros",null,"Agosto","Ago",{"$f":"SUMIFS(BudgetTracker[Valor\norçado],BudgetTracker[Mês],\"Agosto\",BudgetTracker[Ocasião],\"Aniversários\")","v":{"v":0,"d":"R$ 0"}},{"$f":"SUMIFS(BudgetTracker[Valor\norçado],BudgetTracker[Mês],\"Agosto\",BudgetTracker[Ocasião],\"Feriados\")","v":{"v":0,"d":"R$ 0"}},{"$f":"SUMIFS(BudgetTracker[Valor\norçado],BudgetTracker[Mês],\"Agosto\",BudgetTracker[Ocasião],\"<>Feriados\",BudgetTracker[Ocasião],\"<>Aniversários\")","v":{"v":0,"d":"R$ 0"}},{"$f":"SUMIFS(BudgetTracker[Valor\ngasto],BudgetTracker[Mês],\"Agosto\")","v":{"v":0,"d":"R$ 0"}}]
[null,null,"Setembro","Set",{"$f":"SUMIFS(BudgetTracker[Valor\norçado],BudgetTracker[Mês],\"Setembro\",BudgetTracker[Ocasião],\"Aniversários\")","v":{"v":0,"d":"R$ 0"}},{"$f":"SUMIFS(BudgetTracker[Valor\norçado],BudgetTracker[Mês],\"Setembro\",BudgetTracker[Ocasião],\"Feriados\")","v":{"v":0,"d":"R$ 0"}},{"$f":"SUMIFS(BudgetTracker[Valor\norçado],BudgetTracker[Mês],\"Setembro\",BudgetTracker[Ocasião],\"<>Feriados\",BudgetTracker[Ocasião],\"<>Aniversários\")","v":{"v":0,"d":"R$ 0"}},{"$f":"SUMIFS(BudgetTracker[Valor\ngasto],BudgetTracker[Mês],\"Setembro\")","v":{"v":0,"d":"R$ 0"}}]
[null,null,"Outubro","Out",{"$f":"SUMIFS(BudgetTracker[Valor\norçado],BudgetTracker[Mês],\"Outubro\",BudgetTracker[Ocasião],\"Aniversários\")","v":{"v":0,"d":"R$ 0"}},{"$f":"SUMIFS(BudgetTracker[Valor\norçado],BudgetTracker[Mês],\"Outubro\",BudgetTracker[Ocasião],\"Feriados\")","v":{"v":0,"d":"R$ 0"}},{"$f":"SUMIFS(BudgetTracker[Valor\norçado],BudgetTracker[Mês],\"Outubro\",BudgetTracker[Ocasião],\"<>Feriados\",BudgetTracker[Ocasião],\"<>Aniversários\")","v":{"v":0,"d":"R$ 0"}},{"$f":"SUMIFS(BudgetTracker[Valor\ngasto],BudgetTracker[Mês],\"Outubro\")","v":{"v":0,"d":"R$ 0"}}]
[null,null,"Novembro","Nov",{"$f":"SUMIFS(BudgetTracker[Valor\norçado],BudgetTracker[Mês],\"Novembro\",BudgetTracker[Ocasião],\"Aniversários\")","v":{"v":0,"d":"R$ 0"}},{"$f":"SUMIFS(BudgetTracker[Valor\norçado],BudgetTracker[Mês],\"Novembro\",BudgetTracker[Ocasião],\"Feriados\")","v":{"v":0,"d":"R$ 0"}},{"$f":"SUMIFS(BudgetTracker[Valor\norçado],BudgetTracker[Mês],\"Novembro\",BudgetTracker[Ocasião],\"<>Feriados\",BudgetTracker[Ocasião],\"<>Aniversários\")","v":{"v":0,"d":"R$ 0"}},{"$f":"SUMIFS(BudgetTracker[Valor\ngasto],BudgetTracker[Mês],\"Novembro\")","v":{"v":0,"d":"R$ 0"}}]
[null,null,"Dezembro","Dez",{"$f":"SUMIFS(BudgetTracker[Valor\norçado],BudgetTracker[Mês],\"Dezembro\",BudgetTracker[Ocasião],\"Aniversários\")","v":{"v":0,"d":"R$ 0"}},{"$f":"SUMIFS(BudgetTracker[Valor\norçado],BudgetTracker[Mês],\"Dezembro\",BudgetTracker[Ocasião],\"Feriados\")","v":{"v":0,"d":"R$ 0"}},{"$f":"SUMIFS(BudgetTracker[Valor\norçado],BudgetTracker[Mês],\"Dezembro\",BudgetTracker[Ocasião],\"<>Feriados\",BudgetTracker[Ocasião],\"<>Aniversários\")","v":{"v":0,"d":"R$ 0"}},{"$f":"SUMIFS(BudgetTracker[Valor\ngasto],BudgetTracker[Mês],\"Dezembro\")","v":{"v":0,"d":"R$ 0"}}]